[Event "Reykjavik Open 2022"]
[Site "Reykjavik"]
[Date "2022.04.08"]
[Round "4.55"]
[White "Marie, Maxime"]
[Black "Skahlberg Bjerknes-Lima de Far, Warg"]
[Result "1-0"]
[ECO "A37"]
[WhiteElo "2175"]
[BlackElo "1874"]
[Annotator "RC"]
[PlyCount "73"]
[EventDate "2022.04.06"]
[EventCountry "ISL"]
[SourceTitle "playchess.com"]
[Source "ChessBase"]
[SourceQuality "1"]
[TimeControl "40/5400+30:1800+30"]

1. c4 {[%emt 0:00:04]} c5 {[%emt 0:00:03]} 2. g3 {[%emt 0:00:12]} Nc6 {[%emt 0:00:04]} 3. Bg2 {[%emt 0:00:05]} g6 {[%emt 0:00:03]} 4. Nf3 {[%emt 0:01:42]} Bg7 {[%emt 0:00:40]} 5. O-O {[%emt 0:00:11]} e5 {[%emt 0:00:23]} 6. Nc3 {[%emt 0:00:50]} d6 {[%emt 0:00:07]} 7. Ne1 {[%emt 0:02:04]} Be6 {[%emt 0:00:10]} 8. d3 {[%emt 0:01:02]} Nge7 {[%emt 0:00:17]} 9. Nd5 {[%emt 0:01:44]} O-O {[%emt 0:03:05]} 10. f4 {[%emt 0:04:26]} f5 {[%emt 0:07:27]} 11. a3 {[%emt 0:01:46]} Bxd5 {[%emt 0:05:36]} 12. cxd5 {[%emt 0:00:10]} Nd4 {[%emt 0:00:06]} 13. e3 {[%emt 0:21:14]} Nb5 {[%emt 0:01:19]} 14. a4 {[%emt 0:01:44]} Nc7 {[%emt 0:00:35]} 15. e4 {[%emt 0:02:06]} Qd7 {[%emt 0:06:16]} 16. Nf3 {[%emt 0:00:23]} h6 {[%emt 0:03:04]} 17. Qc2 {[%emt 0:03:28]} Kh7 {[%emt 0:00:30]} 18. fxe5 {[%emt 0:00:30]} dxe5 {[%emt 0:24:41]} 19. Qxc5 {[%emt 0:04:00]} Ne8 {[%emt 0:01:34]} 20. Bh3 {[%emt 0:03:52]} Nd6 {[%emt 0:02:42]} 21. Qe3 {[%emt 0:02:01]} Qc8 {[%emt 0:14:41]} 22. Qe2 {[%emt 0:08:19]} g5 {[%emt 0:03:39]} 23. Bxg5 {[%emt 0:04:12]} hxg5 {[%emt 0:02:58]} 24. Rac1 {[%emt 0:03:15]} Qe8 {[%emt 0:02:12]} 25. Nxg5+ {[%emt 0:01:57]} Kg8 {[%emt 0:05:21]} 26. Ne6 {[%emt 0:02:21]} Rf6 {[%emt 0:00:30]} 27. Nc7 {[%emt 0:00:30]} Qf8 {[%emt 0:00:30]} 28. Nxa8 {[%emt 0:00:30]} Qxa8 {[%emt 0:00:30]} 29. exf5 {[%emt 0:00:30]} Nexf5 {[%emt 0:01:02]} 30. Bxf5 {[%emt 0:10:49]} Nxf5 {[%emt 0:01:31]} 31. Qxe5 {[%emt 0:02:56]} Qf8 {[%emt 0:01:07]} 32. d6 {[%emt 0:01:41]} Rf7 {[%emt 0:04:26]} 33. Qe6 {[%emt 0:05:15]} Bd4+ {[%emt 0:05:59]} 34. Kh1 {[%emt 0:01:22]} Kg7 {[%emt 0:00:48]} 35. Rf4 {[%emt 0:00:48]} Be3 {[%emt 0:01:36]} 36. Rc8 {[%emt 0:01:59]} Qxd6 {[%emt 0:01:20]} 37. Rg4+ {[%emt 0:00:15]} 1-0

[Event "Reykjavik Open 2022"]
[Site "Reykjavik"]
[Date "2022.04.08"]
[Round "4.56"]
[White "Moller, Tomas"]
[Black "Johannsson, Birkir Isak"]
[Result "0-1"]
[ECO "C01"]
[WhiteElo "1375"]
[BlackElo "2103"]
[Annotator "RC"]
[PlyCount "78"]
[EventDate "2022.04.06"]
[EventCountry "ISL"]
[SourceTitle "playchess.com"]
[Source "ChessBase"]
[SourceQuality "1"]
[TimeControl "40/5400+30:1800+30"]

1. c4 {[%emt 0:00:06]} e6 {[%emt 0:01:20]} 2. e4 {[%emt 0:00:19]} d5 {[%emt 0:01:10]} 3. cxd5 exd5 {[%emt 0:00:14]} 4. exd5 {[%emt 0:03:42]} Nf6 {[%emt 0:00:20]} 5. Nc3 {[%emt 0:03:35]} Nxd5 {[%emt 0:02:02]} 6. Nf3 {[%emt 0:03:18]} Be7 {[%emt 0:01:58]} 7. d4 {[%emt 0:00:42]} O-O {[%emt 0:01:14]} 8. Be2 {[%emt 0:02:38]} Be6 {[%emt 0:03:13]} 9. O-O {[%emt 0:03:47]} Nd7 {[%emt 0:01:20]} 10. Nxd5 {[%emt 0:05:50]} Bxd5 {[%emt 0:00:09]} 11. Be3 {[%emt 0:03:16]} c6 {[%emt 0:02:22]} 12. Ne5 {[%emt 0:08:29]} Bf6 {[%emt 0:01:50]} 13. Nxd7 {[%emt 0:01:02]} Qxd7 {[%emt 0:00:07]} 14. Qd2 {[%emt 0:01:40]} Rad8 {[%emt 0:01:16]} 15. Rfd1 {[%emt 0:01:43]} Rfe8 {[%emt 0:03:47]} 16. b3 {[%emt 0:05:53]} g6 {[%emt 0:07:02]} 17. Rac1 {[%emt 0:03:01]} h5 {[%emt 0:01:51]} 18. Bc4 {[%emt 0:02:49]} Qg4 {[%emt 0:02:25]} 19. Bxd5 {[%emt 0:02:15]} Rxd5 {[%emt 0:00:11]} 20. f3 {[%emt 0:02:48]} Qd7 {[%emt 0:08:19]} 21. Kf1 {[%emt 0:13:10]} Rd8 {[%emt 0:02:56]} 22. Rc5 {[%emt 0:03:35]} Rd6 {[%emt 0:12:08]} 23. d5 {[%emt 0:02:23]} cxd5 {[%emt 0:12:09]} 24. Bf4 {[%emt 0:00:55]} b6 {[%emt 0:02:38]} 25. Bxd6 {[%emt 0:04:57]} bxc5 {[%emt 0:00:11]} 26. Bf4 {[%emt 0:02:46]} Qb5+ {[%emt 0:05:52]} 27. Kf2 {[%emt 0:01:14]} Bd4+ {[%emt 0:00:45]} 28. Kg3 {[%emt 0:00:19]} Bf6 {[%emt 0:02:00]} 29. h4 {[%emt 0:01:06]} Qd7 {[%emt 0:01:38]} 30. Re1 {[%emt 0:00:44]} Qf5 {[%emt 0:00:24]} 31. Qe3 {[%emt 0:01:31]} d4 {[%emt 0:02:08]} 32. Qe4 {[%emt 0:00:48]} Qd7 {[%emt 0:02:54]} 33. Qd3 {[%emt 0:00:29]} Re8 {[%emt 0:02:54]} 34. Qd2 {[%emt 0:01:27]} Re6 {[%emt 0:00:56]} 35. Rc1 {[%emt 0:00:30]} Qe7 {[%emt 0:02:37]} 36. Bg5 {[%emt 0:01:44]} Re2 {[%emt 0:02:35]} 37. Bxf6 {[%emt 0:03:08]} Qd6+ {[%emt 0:00:11]} 38. Be5 {[%emt 0:02:06]} Qxe5+ {[%emt 0:00:28]} 39. f4 {[%emt 0:00:08]} Qe4 {[%emt 0:00:06]} 0-1

[Event "Reykjavik Open 2022"]
[Site "Reykjavik"]
[Date "2022.04.08"]
[Round "4.57"]
[White "Zysko, Jan"]
[Black "Kumar, Sanjit S"]
[Result "1-0"]
[ECO "A85"]
[WhiteElo "2108"]
[BlackElo "1794"]
[Annotator "RC"]
[PlyCount "47"]
[EventDate "2022.04.06"]
[EventCountry "ISL"]
[SourceTitle "playchess.com"]
[Source "ChessBase"]
[SourceQuality "1"]
[TimeControl "40/5400+30:1800+30"]

1. d4 {[%emt 0:01:11]} d5 {[%emt 0:00:02]} 2. c4 {[%emt 0:00:07]} c6 {[%emt 0:00:03]} 3. Nc3 {[%emt 0:00:22]} e6 {[%emt 0:00:01]} 4. e3 {[%emt 0:00:51]} f5 {[%emt 0:00:01]} 5. Nf3 {[%emt 0:00:11]} Nf6 {[%emt 0:00:03]} 6. Bd3 {[%emt 0:00:10]} Bd6 {[%emt 0:00:02]} 7. O-O {[%emt 0:01:19]} O-O {[%emt 0:00:03]} 8. b3 {[%emt 0:00:44]} Ne4 {[%emt 0:00:03]} 9. Ne2 {[%emt 0:05:10]} Nd7 {[%emt 0:00:04]} 10. Bb2 {[%emt 0:00:12]} Qf6 {[%emt 0:00:04]} 11. Qc1 {[%emt 0:04:47]} g5 {[%emt 0:03:22]} 12. Ba3 {[%emt 0:03:37]} Bxa3 {[%emt 0:02:35]} 13. Qxa3 {[%emt 0:00:48]} h5 {[%emt 0:18:26]} 14. Bxe4 {[%emt 0:10:21]} fxe4 {[%emt 0:00:25]} 15. Nd2 {[%emt 0:00:11]} g4 {[%emt 0:12:00]} 16. Qd6 {[%emt 0:04:54]} Rf7 {[%emt 0:14:04]} 17. Nf4 {[%emt 0:02:01]} Nf8 {[%emt 0:13:35]} 18. cxd5 {[%emt 0:02:09]} Rd7 {[%emt 0:03:06]} 19. Nxe4 {[%emt 0:02:49]} Rxd6 {[%emt 0:03:32]} 20. Nxf6+ {[%emt 0:00:07]} Kf7 {[%emt 0:00:08]} 21. Ne4 {[%emt 0:00:51]} Rd8 {[%emt 0:00:30]} 22. dxc6 {[%emt 0:00:30]} bxc6 {[%emt 0:01:31]} 23. Rfc1 {[%emt 0:00:28]} Bd7 {[%emt 0:00:21]} 24. Nxh5 {[%emt 0:01:16]} 1-0

[Event "Reykjavik Open 2022"]
[Site "Reykjavik"]
[Date "2022.04.09"]
[Round "5.1"]
[White "Idani, Pouya"]
[Black "Jarmula, Lukasz"]
[Result "1/2-1/2"]
[ECO "C42"]
[WhiteElo "2621"]
[BlackElo "2434"]
[Annotator "TA"]
[PlyCount "125"]
[EventDate "2022.04.06"]
[EventCountry "ISL"]
[SourceTitle "playchess.com"]
[Source "ChessBase"]
[SourceQuality "1"]
[TimeControl "40/5400+30:1800+30"]

{[%evp 13,125,15,32,20,37,26,62,68,78,87,79,81,88,70,72,83,69,67,81,79,89,62,72,72,69,59,63,72,74,70,70,64,69,67,65,53,52,50,48,42,56,50,52,50,57,21,29,0,0,-1,0,0,0,0,45,45,45,45,45,45,45,45,45,45,358,357,334,277,230,207,345,319,277,284,312,8,8,8,8,8,8,8,8,8,12,12,12,12,14,10,10,8,8,0,8,8,8,8,8,8,8,8,8,0,8,0,8,0,8,6,6,0,0,0]} 1. e4 {[%emt 0:00:01]} e5 {[%emt 0:00:06]} 2. Nf3 {[%emt 0:00:04]} Nf6 {[%emt 0:00:08]} 3. Nxe5 {[%emt 0:04:03]} d6 {[%emt 0:00:06]} 4. Nf3 {[%emt 0:00:03]} Nxe4 {[%emt 0:00:06]} 5. c4 {[%emt 0:00:02]} Be7 {[%emt 0:03:14]} 6. d4 {[%emt 0:00:07]} O-O {[%emt 0:01:13]} 7. Bd3 {[%emt 0:00:09]} Nf6 {[%emt 0:00:42]} 8. O-O {[%emt 0:01:34][%cal Bh1f1,Bf1e1,Be1e3][%mdl 32] C42: Petroff Defence: 3 Nxe5 and unusual White 3rd moves.} Bg4 {[%emt 0:02:15]} 9. h3 {[%emt 0:01:52]} Bh5 {[%emt 0:01:25]} 10. Nc3 {[%emt 0:03:25] White is slightly better.} Nc6 {[%emt 0:02:24][%cal Oc6d4]} 11. g4 {[%emt 0:04:50]} Bg6 {[%emt 0:02:11]} 12. Bxg6 {[%emt 0:02:12]} hxg6 {[%emt 0:00:07]} 13. Re1 {[%emt 0:01:08]} Re8 {[%emt 0:09:53]} 14. d5 {[%emt 0:01:53]} Nb8 {[%emt 0:00:14][%cal Bc6b8,Bb8d7,Bd7b6][%mdl 32] [#]} 15. Bf4 $146 {[%emt 0:06:05]} ({Predecessor:} 15. Qb3 Nbd7 16. Be3 Qc8 17. Bd4 a6 18. Re3 c5 19. Bxf6 Nxf6 20. Rae1 Bf8 21. Rxe8 Nxe8 {½-½ (39) Kantans,T (2510)-Rozentalis,E (2523) Tallinn 2018}) 15... Nbd7 {[%emt 0:02:58]} 16. Qd2 {[%emt 0:03:19] &Bianco is much more active.} a5 {[%emt 0:04:48]} 17. Re3 {[%emt 0:09:22]} Nb6 {[%emt 0:05:12]} 18. b3 {[%emt 0:01:48]} a4 {[%emt 0:02:10]} 19. Rae1 {[%emt 0:03:29]} axb3 {[%emt 0:00:27]} 20. axb3 {[%emt 0:00:05]} Qd7 {[%emt 0:00:46]} 21. Bg5 {[%emt 0:14:42]} Bf8 {[%emt 0:04:36]} 22. Bxf6 {[%emt 0:05:39]} Rxe3 {[%emt 0:00:59]} 23. Qxe3 {[%emt 0:01:57]} ({Much worse is} 23. fxe3 $6 gxf6 24. e4 Qd8 $11) 23... gxf6 {[%emt 0:00:07]} 24. Qf4 {[%emt 0:00:53]} Bg7 {[%emt 0:02:19]} 25. Ne4 {[%emt 0:01:17]} f5 {[%emt 0:05:04]} 26. gxf5 {[%emt 0:00:58]} Qxf5 {[%emt 0:00:08]} 27. Qxf5 {[%emt 0:00:11]} gxf5 {[%emt 0:00:05]} 28. Ng3 {[%emt 0:00:32]} Ra3 {[%emt 0:00:32]} 29. Re8+ {[%emt 0:12:08]} Kh7 {[%emt 0:02:38]} 30. h4 {[%emt 0:06:10] [#] And now Ng5+ would win.} Rxb3 {[%emt 0:07:45]} 31. Kg2 {[%emt 0:01:01] Black must now prevent h5.} Nxc4 {[%emt 0:02:13]} 32. Ng5+ {[%emt 0:00:27]} Kg6 {[%emt 0:01:47]} 33. f4 $1 {[%emt 0:00:18]} Ne3+ {[%emt 0:04:39] [#]} 34. Rxe3 $1 {[%emt 0:00:18]} Rxe3 $14 {[%emt 0:00:06][%mdl 4096] Endgame KRB-KNN} 35. h5+ {[%emt 0:00:02][%mdl 64] Deflection} Kh6 {[%emt 0:00:31][%cal Oe3g3]} 36. Nxf5+ {[%emt 0:00:04]} Kxh5 {[%emt 0:00:08] Threatens to win with ...Re1.} 37. Nxe3 {[%emt 0:00:01] Kf3 is the strong threat.} Bh6 $1 {[%emt 0:01:14]} 38. Nh3 {[%emt 0:02:13]} c6 $2 {[%emt 0:08:01][%mdl 8192]} (38... b5 $1 $14) 39. Kf3 $18 {[%emt 0:00:26]} cxd5 {[%emt 0:01:29]} 40. Nf5 {[%emt 0:00:00]} Bf8 {[%emt 0:00:00]} 41. Nf2 {[%emt 0:03:52]} d4 {[%emt 0:10:03]} (41... Kg6 $142) 42. Ke4 {[%emt 0:00:56]} ({Weaker is} 42. Nxd4 b5 43. Ke4 (43. Nxb5 f5 $16) 43... b4 $16) 42... b5 {[%emt 0:02:40]} 43. Nxd4 {[%emt 0:02:01]} b4 {[%emt 0:04:12]} 44. f5 $2 {[%emt 0:05:08]} (44. Nd3 $18) 44... Bg7 $11 {[%emt 0:03:23] The position is equal.} 45. Nb3 {[%emt 0:00:05]} Bc3 {[%emt 0:10:22]} 46. Nd3 {[%emt 0:00:05]} Kg5 {[%emt 0:02:19]} 47. Nf4 {[%emt 0:00:08]} Kg4 {[%emt 0:00:32]} 48. Nd5 {[%emt 0:00:39]} Kg5 {[%emt 0:00:14]} 49. Nc1 {[%emt 0:02:08]} Bd2 $1 {[%emt 0:01:30]} 50. Ne2 {[%emt 0:00:25]} Kh4 {[%emt 0:07:08]} (50... b3 $2 51. Nd4 Bc1 52. Nxb3 $18) 51. Nd4 {[%emt 0:01:23] Intending Nf3+ and mate.} Kg4 {[%emt 0:00:15]} 52. Nf6+ {[%emt 0:07:07]} Kg5 {[%emt 0:00:47]} 53. Nd5 {[%emt 0:01:19] White threatens Nf3+ and mate.} Kg4 {[%emt 0:00:16]} 54. Nb3 {[%emt 0:00:19]} Bc3 {[%emt 0:00:36]} 55. Na5 {[%emt 0:00:55] Hoping for Nc6.} Be1 $1 {[%emt 0:00:43]} 56. Ne3+ {[%emt 0:03:52]} Kg5 {[%emt 0:00:34]} 57. Nb3 {[%emt 0:00:41]} Bc3 {[%emt 0:00:26]} 58. Nd5 {[%emt 0:00:28]} Kg4 {[%emt 0:00:47]} 59. Na5 {[%emt 0:06:55] Strongly threatening Nc6.} Be1 $1 {[%emt 0:00:49]} 60. Ne3+ {[%emt 0:03:48]} Kg5 {[%emt 0:00:07]} 61. Ng2 {[%emt 0:01:25]} Bc3 {[%emt 0:01:32]} 62. Nf4 {[%emt 0:01:02]} Kg4 {[%emt 0:00:15]} 63. Nd5 {[%emt 0:01:01] Black escapes into a draw.  Weighted Error Value: White=0.15 (very precise) /Black=0.18 (very precise)} 1/2-1/2

[Event "Reykjavik Open 2022"]
[Site "Reykjavik"]
[Date "2022.04.09"]
[Round "5.2"]
[White "Fier, Alexandr"]
[Black "Gukesh D"]
[Result "1/2-1/2"]
[ECO "B31"]
[WhiteElo "2583"]
[BlackElo "2614"]
[Annotator "TA"]
[PlyCount "44"]
[EventDate "2022.04.06"]
[EventCountry "ISL"]
[SourceTitle "playchess.com"]
[Source "ChessBase"]
[SourceQuality "1"]
[TimeControl "40/5400+30:1800+30"]

{[%evp 17,44,0,0,0,0,0,18,20,12,15,19,14,0,-52,0,0,0,-7,0,-16,0,0,0,0,0,0,0,0,0]} 1. e4 {[%emt 0:00:03]} c5 {[%emt 0:01:13]} 2. Nf3 {[%emt 0:00:05]} Nc6 {[%emt 0:00:58]} 3. Bb5 {[%emt 0:00:05]} g6 {[%emt 0:00:39]} 4. O-O {[%emt 0:00:06]} Bg7 {[%emt 0:00:07]} 5. c3 {[%emt 0:00:04]} Nf6 {[%emt 0:00:30]} 6. Re1 {[%emt 0:00:05]} O-O {[%emt 0:00:08]} 7. d4 {[%emt 0:00:03]} d5 {[%emt 0:00:30]} 8. e5 {[%emt 0:00:03]} Ne4 {[%emt 0:00:06]} 9. Bxc6 {[%emt 0:00:03]} bxc6 {[%emt 0:00:07]} 10. Be3 $1 {[%emt 0:00:04][%mdl 4] is now more promising than 10.Nbd2. B31: Sicilian: 2...Nc6 3 Bb5 g6.} cxd4 {[%emt 0:05:13]} 11. cxd4 {[%emt 0:00:09]} Rb8 {[%emt 0:00:05]} 12. Qc1 {[%emt 0:00:15]} Bf5 {[%emt 0:00:59]} 13. Nbd2 {[%emt 0:00:44]} Qd7 {[%emt 0:00:17]} 14. Nb3 {[%emt 0:06:13] Threatens to win with Nh4.} f6 {[%emt 0:00:09] [#]} 15. Bh6 $146 {[%emt 0:01:23]} (15. Bf4 $11) ({Predecessor:} 15. exf6 exf6 16. Nh4 Be6 17. f3 g5 18. fxe4 dxe4 19. Bf2 Bd5 20. Nc5 Qc8 21. Nxe4 gxh4 {½-½ (58) Svidler,P (2694)-Shevchenko,K (2632) Riga 2021}) 15... Bxh6 {[%emt 0:07:16]} (15... Bh3 $5 {[%cal Rd7g4]} 16. e6 {[#]} (16. gxh3 Qxh3 17. Bxg7 Qg4+ 18. Kf1 Qxf3 $17) 16... Bxh6 $1 17. Qxh6 Bxe6 $15) 16. Qxh6 {[%emt 0:00:05] The position is equal.} a5 {[%emt 0:00:08][%cal Ba7a5,Ba5a4,Ba4b3][%mdl 32]} 17. Qc1 {[%emt 0:05:06]} a4 {[%emt 0:04:04]} 18. Nbd2 {[%emt 0:04:39]} Qb7 {[%emt 0:20:11]} 19. exf6 {[%emt 0:04:08]} exf6 {[%emt 0:00:32]} 20. b3 {[%emt 0:00:03]} Nxd2 {[%emt 0:06:46]} 21. Nxd2 {[%emt 0:03:13]} Qb4 {[%emt 0:03:54]} 22. Nf3 {[%emt 0:01:44]} axb3 {[%emt 0:00:59] An interesting draw.  Weighted Error Value: White=0.09 (flawless) /Black=0.08 (flawless)} 1/2-1/2

[Event "Reykjavik Open 2022"]
[Site "Reykjavik"]
[Date "2022.04.09"]
[Round "5.3"]
[White "Steingrimsson, Hedinn"]
[Black "Praggnanandhaa R"]
[Result "1/2-1/2"]
[ECO "E32"]
[WhiteElo "2535"]
[BlackElo "2612"]
[Annotator "TA"]
[PlyCount "66"]
[EventDate "2022.04.06"]
[EventCountry "ISL"]
[SourceTitle "playchess.com"]
[Source "ChessBase"]
[SourceQuality "1"]
[TimeControl "40/5400+30:1800+30"]

{[%evp 12,66,12,0,0,0,0,0,0,0,0,-12,0,0,-4,0,17,-14,0,7,0,0,43,83,84,58,64,-125,0,-104,-81,-82,-87,-120,0,0,0,0,0,0,0,0,0,0,0,0,0,0,0,0,0,0,0,0,0,0,0]} 1. d4 {[%emt 0:04:17]} Nf6 {[%emt 0:00:27]} 2. c4 {[%emt 0:00:36]} e6 {[%emt 0:00:07]} 3. Nc3 {[%emt 0:00:46]} Bb4 {[%emt 0:00:07]} 4. Qc2 {[%emt 0:02:25]} O-O {[%emt 0:00:13]} 5. a3 {[%emt 0:00:51]} Bxc3+ {[%emt 0:00:10]} 6. Qxc3 {[%emt 0:00:07]} d6 {[%emt 0:01:01]} 7. f3 {[%emt 0:06:40] 7.Nf3 is setting a new trend.} b6 {[%emt 0:00:39] E32: Nimzo-Indian: Classical (4 Qc2): 4...0-0.} 8. e4 {[%emt 0:01:44]} c5 {[%emt 0:00:17]} 9. d5 {[%emt 0:09:46]} b5 {[%emt 0:00:58]} 10. dxe6 {[%emt 0:07:19]} (10. cxb5 exd5 11. Bg5 d4 $17) 10... Bxe6 {[%emt 0:01:27]} 11. cxb5 {[%emt 0:00:07] [#]} Nbd7 $146 {[%emt 0:06:16]} ({Predecessor:} 11... a6 12. bxa6 Qb6 13. Bg5 Nfd7 14. Rd1 Nxa6 15. Ne2 Nc7 16. Ng3 Rfb8 17. Rd2 d5 {0-1 (31) Borsuk,K (2401)-Vrolijk,L (2480) Chess.com INT 2020}) 12. Ne2 {[%emt 0:11:27]} d5 {[%emt 0:02:46][%cal Bd6d5,Bd5e4,Be4f3,Bf3f2][%mdl 32]} 13. Nf4 {[%emt 0:05:59]} Re8 {[%emt 0:10:37]} 14. Bd2 {[%emt 0:06:21]} dxe4 {[%emt 0:05:25]} 15. Nxe6 {[%emt 0:00:08]} Rxe6 {[%emt 0:00:18]} 16. Bc4 {[%emt 0:05:57]} exf3+ {[%emt 0:17:44]} 17. Bxe6 {[%emt 0:02:46] A strong pair of Bishops.} f2+ {[%emt 0:00:44]} 18. Ke2 {[%emt 0:18:29] aiming for Bf5.} fxe6 {[%emt 0:03:09]} 19. Bg5 $2 {[%emt 0:01:52]} ({Reject} 19. Qe3 Qb6 20. a4 (20. Qf3 $2 Qxb5+ 21. Kxf2 Rf8 $19) 20... Rf8 $11) (19. Qc4 $1 $14 {stays ahead.}) 19... Qe8 {[%emt 0:08:31]} (19... Qb8 $1 $17 {[%cal Rb8b5]} 20. Bxf6 Nxf6) 20. Bxf6 {[%emt 0:02:14]} (20. Rhd1 $11 {remains equal.}) 20... Nxf6 $17 {[%emt 0:01:48]} 21. Qc4 {[%emt 0:03:18] [#]} Rd8 $1 {[%emt 0:04:14] Strongly threatening ...Rd4.} 22. Kxf2 {[%emt 0:02:51] [#] Black must now prevent Rhe1.} Rd2+ {[%emt 0:00:56]} (22... Rd4 $1 $17 23. Qb3 c4) 23. Kg1 $1 $11 {[%emt 0:02:46] The position is equal.} Qa8 {[%emt 0:15:22][%csl Gd2][%cal Ra8g2]} 24. Qxe6+ {[%emt 0:01:03]} Kh8 $1 {[%emt 0:00:06][%csl Gd2][%cal Ra8g2]} 25. Qc6 {[%emt 0:00:15]} Qd8 {[%emt 0:00:52] ( -> ...Qd4+)} 26. h3 {[%emt 0:04:54]} (26. Qxc5 {gets mated.} Ne4 27. h4 Nxc5 28. Rf1 Qd4+ 29. Kh2 Ne6) 26... Qd4+ {[%emt 0:03:45]} 27. Kh2 {[%emt 0:00:00]} Qe5+ {[%emt 0:00:27]} 28. Kg1 {[%emt 0:00:00]} h6 {[%emt 0:00:56] And now ...Nd5 would win.} 29. Rf1 {[%emt 0:00:00]} Qd4+ {[%emt 0:05:47]} 30. Kh2 {[%emt 0:00:00] Threatens to win with Rf5.} Qe5+ {[%emt 0:00:14]} 31. Kg1 {[%emt 0:00:00]} Qe3+ {[%emt 0:01:32]} 32. Kh2 {[%emt 0:00:00] Rf5 is the strong threat.} Qe5+ {[%emt 0:00:15]} 33. Kg1 {[%emt 0:00:00]} Qd4+ {[%emt 0:04:25] Weighted Error Value: White=0.22 (precise) /Black=0.13 (very precise)} 1/2-1/2

[Event "Reykjavik Open 2022"]
[Site "Reykjavik"]
[Date "2022.04.09"]
[Round "5.4"]
[White "Niemann, Hans Moke"]
[Black "Gretarsson, Hjorvar Steinn"]
[Result "1-0"]
[ECO "B47"]
[WhiteElo "2642"]
[BlackElo "2548"]
[Annotator "TA"]
[PlyCount "73"]
[EventDate "2022.04.06"]
[EventCountry "ISL"]
[SourceTitle "playchess.com"]
[Source "ChessBase"]
[SourceQuality "1"]
[TimeControl "40/5400+30:1800+30"]

{[%evp 11,73,14,26,16,23,10,29,22,25,17,32,28,34,44,44,12,11,0,0,7,36,28,37,27,29,29,47,55,48,55,77,74,67,68,81,77,75,68,81,81,84,98,132,137,129,127,144,136,143,145,151,148,173,169,163,185,287,293,431,437,414,367,454,440]} 1. e4 {[%emt 0:03:43]} c5 {[%emt 0:03:35]} 2. Nf3 {[%emt 0:00:00]} e6 {[%emt 0:00:15]} 3. d4 {[%emt 0:00:00]} cxd4 {[%emt 0:00:05]} 4. Nxd4 {[%emt 0:00:00]} Nc6 {[%emt 0:00:04]} 5. Nc3 {[%emt 0:00:00]} Qc7 {[%emt 0:00:13]} 6. Be2 {[%emt 0:00:00]} a6 {[%emt 0:00:53]} 7. Nxc6 {[%emt 0:00:00] B47: Sicilian: Taimanov: 5 Nc3 Qc7 6 f4, 6 g3 and 6 Be2.} bxc6 {[%emt 0:05:02]} 8. Qd3 $1 {[%emt 0:00:00][%mdl 4] is now more promising than 8.0-0.} d5 {[%emt 0:06:03]} 9. Qg3 {[%emt 0:00:00] White has an edge.} Qxg3 {[%emt 0:03:41]} 10. hxg3 {[%emt 0:00:00][%cal Bh2g3,Bg3g4,Bg4g5][%mdl 32]} ({Of course not} 10. fxg3 Nf6 $11) 10... Nf6 {[%emt 0:02:41]} 11. g4 {[%emt 0:00:00]} Bb4 {[%emt 0:09:13]} 12. Bd2 {[%emt 0:00:00]} O-O {[%emt 0:14:42] [#]} 13. e5 $146 {[%emt 0:04:05]} ({Predecessor:} 13. f3 h6 14. O-O-O a5 15. g5 hxg5 16. Bxg5 Nd7 17. Na4 Bd6 18. Be3 f5 19. exd5 exd5 {½-½ (46) Miettinen,K (2406)-Tauriainen,M (2375) ICCF email 2019}) 13... Nd7 {[%emt 0:00:59]} 14. f4 {[%emt 0:00:14]} f6 {[%emt 0:13:38]} 15. exf6 {[%emt 0:01:31]} Nxf6 {[%emt 0:01:09][%cal Oe6e5]} 16. g5 {[%emt 0:00:16]} Nd7 {[%emt 0:01:25]} 17. O-O-O {[%emt 0:00:13]} e5 {[%emt 0:05:49]} 18. Rh4 {[%emt 0:01:46] With the idea Bd3.} Be7 {[%emt 0:11:15]} 19. Bd3 {[%emt 0:23:29]} h6 {[%emt 0:01:53]} 20. Rh2 $1 {[%emt 0:04:36]} Nc5 {[%emt 0:09:44]} 21. gxh6 {[%emt 0:01:40]} Nxd3+ {[%emt 0:04:55]} 22. cxd3 {[%emt 0:00:10]} exf4 {[%emt 0:00:21] Black is now going downhill.} 23. hxg7 {[%emt 0:00:18]} Kxg7 {[%emt 0:00:09]} 24. Rdh1 {[%emt 0:00:06] [#] And now Rh7+ would win.} Bg5 {[%emt 0:02:34]} 25. Rh7+ {[%emt 0:02:03]} Kg6 {[%emt 0:00:05]} 26. Rc7 {[%emt 0:00:07] &Bianco is more active.} Be6 {[%emt 0:01:13]} 27. Rxc6 {[%emt 0:00:13]} Rf6 {[%emt 0:00:28]} 28. Re1 {[%emt 0:01:43]} Bf7 {[%emt 0:00:55]} 29. Rxf6+ {[%emt 0:00:22]} Bxf6 {[%emt 0:01:16] [#]} 30. Ne2 $1 {[%emt 0:00:08]} ({Don't do} 30. Bxf4 d4 $16) 30... Rc8+ {[%emt 0:00:30]} 31. Kb1 {[%emt 0:00:08]} Bh4 {[%emt 0:00:40]} 32. Nxf4+ {[%emt 0:00:13]} Kf5 {[%emt 0:00:26]} 33. Rf1 {[%emt 0:00:35]} Kg4 {[%emt 0:00:37]} (33... Ke5 {was worth a try.} 34. g4 d4) 34. Ne2 $18 {[%emt 0:00:52]} Bg8 {[%emt 0:00:28]} (34... Be8 $142 35. Rf4+ Kh5 36. Rf5+ Kg4 37. Rf4+ (37. Rxd5 Rd8 $18) 37... Kh5) 35. Rf4+ {[%emt 0:00:37]} Kh5 {[%emt 0:00:04]} 36. Ra4 {[%emt 0:00:05]} Bh7 {[%emt 0:00:58]} 37. Nf4+ {[%emt 0:00:22] Weighted Error Value: White=0.03 (flawless) /Black=0.17 (very precise)} 1-0